fUSD/lending_fUSD_20251213
["ID","MTS","AMOUNT","RATE_DAILY","PERIOD"]
[398419214,1765632586934,-25000.0,0.000159,2]
[398419215,1765632588031,-25000.0,0.000159,2]
[398419216,1765632588759,-25000.0,0.000159,2]
[398419217,1765632589532,-25000.0,0.000159,2]
[398419218,1765632590052,-25000.0,0.000159,2]
[398419219,1765632591293,-13428.57029791,0.000159,2]
[398419220,1765632591316,-987.1242,0.000159,2]
[398419221,1765632591340,-152.94,0.00015999,2]
[398419222,1765632591364,-426.44808704,0.00015999,2]
[398419223,1765632591392,-294.60592738,0.00015999,2]
[398419224,1765632591419,-500.0,0.00015999,2]
[398419225,1765632591447,-500.0,0.00015999,2]
[398419226,1765632591474,-500.0,0.00015999,2]
[398419227,1765632591501,-500.0,0.00015999,2]
[398419228,1765632591532,-317.8098279,0.00015999,2]
[398419229,1765632591561,-500.0,0.00015999,2]
[398419230,1765632591587,-500.0,0.00015999,2]
[398419231,1765632591614,-500.0,0.00015999,2]
[398419232,1765632591639,-500.0,0.00015999,2]
[398419233,1765632591666,-500.0,0.00015999,2]
[398419234,1765632591696,-500.0,0.00015999,2]
[398419235,1765632591723,-500.0,0.00015999,2]
[398419236,1765632591750,-500.0,0.00015999,2]
[398419237,1765632591777,-788.702,0.00016,2]
[398419238,1765632591802,-1100.0,0.00016,2]
[398419239,1765632591826,-1503.79965977,0.00016,2]
[398419240,1765632592276,-25000.0,0.00016,2]
[398419241,1765632592653,-25000.0,0.00016,2]
[398419242,1765632594198,-1728.76000213,0.00016,2]
[398419243,1765632594225,-23271.23999787,0.00016,4]
[398419244,1765632594638,-25000.0,0.00016,4]
[398419245,1765632595629,-25000.0,0.00016,4]
[398419246,1765632596674,-25000.0,0.00016,4]
[398419247,1765632597537,-25000.0,0.00016,4]
[398419248,1765632597988,-22024.87905779,0.00016,4]
[398419249,1765632602502,-184.6945298,0.00016003,2]
[398419250,1765632605015,-284.0,0.00016003,2]
[398419251,1765632605041,-15.97059731,0.00016003,2]
[398419252,1765632606392,-195.0,0.00016003,2]
[398419253,1765632606418,-66.29536241,0.00016003,2]
[398419254,1765632607949,150.0,0.00015854,2]
[398419255,1765632608396,-206.75365186,0.00016003,2]
[398419263,1765632631753,-81.28585862,0.00016003,2]
[398419264,1765632631762,-555.0,0.00016058,2]
[398419265,1765632631773,-558.0,0.00016113,2]
[398419266,1765632631785,-2268.04127427,0.00016122,2]
[398419267,1765632631795,-220.64940809,0.00016186,2]
[398419268,1765632631805,-1154.6379371,0.00016199,2]
[398419269,1765632631820,-45.3620629,0.00016199,2]
[398419270,1765632631830,-1493.480687,0.000162,5]
[398419271,1765632631842,-3660.24664614,0.000162,5]
[398419272,1765632631852,-300.0,0.00016343,2]
[398419273,1765632631862,-2268.04127427,0.00016344,2]
[398419274,1765632631872,-6126.95,0.00016438,2]
[398419275,1765632631881,-1973.478628,0.00016445,2]
[398419276,1765632631891,-220.64940809,0.00016471,2]
[398419277,1765632631901,-2268.04127427,0.00016567,2]
[398419278,1765632631911,-957.98474214,0.0001666,2]
[398419279,1765632631920,-168.0,0.00016674,2]
[398419280,1765632631930,-917.60337377,0.000167,2]
[398419281,1765632631940,-500.0,0.00016718,2]
[398419282,1765632631949,-671.0,0.00016718,2]
[398419283,1765632631959,-220.64940809,0.00016757,2]
[398419284,1765632631970,-2268.04127427,0.00016789,2]
[398419285,1765632631979,-151.09704785,0.00016816,2]
[398419287,1765632631989,-500.0,0.00016855,2]
[398419289,1765632631999,-671.0,0.00016855,2]
[398419290,1765632632008,-609.0,0.00016872,2]
[398419291,1765632632018,-1000.0,0.000169,2]
[398419292,1765632632028,-171.89448134,0.000169,2]
[398419293,1765632632038,-300.0,0.00016959,2]
[398419294,1765632632048,-195.0,0.0001696,2]
[398419295,1765632632058,-300.0,0.0001696,2]
[398419296,1765632632068,-2500.0,0.0001696,2]
[398419297,1765632632077,-300.0,0.0001696,2]
[398419298,1765632632087,-300.0,0.0001696,2]
[398419299,1765632632097,-300.0,0.0001696,2]
[398419300,1765632632107,-300.0,0.0001696,2]
[398419301,1765632632117,-250.0,0.0001696,2]
[398419302,1765632632127,-300.0,0.0001696,2]
[398419303,1765632632136,-2500.0,0.0001696,2]
[398419304,1765632632145,-2500.0,0.0001696,2]
[398419305,1765632632155,-2500.0,0.0001696,2]
[398419306,1765632632164,-2500.0,0.0001696,2]
[398419307,1765632632174,-500.0,0.00016973,2]
[398419308,1765632632188,-500.0,0.00016973,2]
[398419309,1765632632198,-442.9296346,0.00016973,2]
[398419310,1765632632207,-500.0,0.00016973,2]
[398419311,1765632632217,-604.7,0.00016986,2]
[398419312,1765632632227,-150.0,0.00016986,2]
[398419313,1765632632237,-7880.20316109,0.00016989,2]
[398419314,1765632632247,-166.0,0.0001699,2]
[398419315,1765632632257,-166.0,0.0001699,2]
[398419316,1765632632268,-167.24,0.0001699,2]
[398419317,1765632632277,-150.90497391,0.0001699,2]
[398419318,1765632632287,-500.0,0.00016992,2]
[398419319,1765632632297,-671.0,0.00016992,2]
[398419320,1765632632307,-6881.1444152,0.00016996,2]
[398419321,1765632632317,-905.2319975,0.00016996,2]
[398419322,1765632632326,-271.0,0.00016999,2]
[398419323,1765632632336,-3386.0,0.00017,2]
[398419324,1765632632346,-150.0,0.00017,2]
[398419325,1765632632356,-46511.21442704,0.00017,2]
[398419326,1765632632369,-20456.26280705,0.00017,2]
[398419327,1765632632397,-1541.12561161,0.00017,2]
[398419328,1765632632409,-2690.79094,0.00017,2]
[398419331,1765632637856,-2169.18029496,0.00017,2]
[398419332,1765632637867,-21085.03360979,0.00017,2]
[398419333,1765632637878,-3615.14081481,0.00017,2]
[398419334,1765632637890,-709.80438926,0.00017,2]
[398419335,1765632637915,-955.88436296,0.00017,2]
[398419336,1765632637926,-878.59516704,0.00017,2]
[398419337,1765632637937,-506.24704117,0.00017,2]
[398419338,1765632637948,-31692.00754191,0.00017,2]
[398419339,1765632637959,-27449.95832474,0.00017,2]
[398419340,1765632637983,-1549.3014806,0.00017,2]
[398419341,1765632637994,-1323.45921772,0.00017,2]
[398419342,1765632638006,-600.0,0.00017,2]
[398419349,1765632639819,-1098.53291601,0.00017,2]
[398419350,1765632639933,-430.4257349,0.00017,2]
[398419351,1765632639944,-10279.88414971,0.00017,2]
[398419352,1765632639955,-19138.23941,0.00017,2]
[398419353,1765632639966,-2987.2,0.00017,2]
[398419354,1765632641290,-1.7e-07,0.00017,2]
[398419355,1765632641303,-1028.80847365,0.00017,2]
[398419356,1765632641314,-399.95619993,0.00017,2]
[398419357,1765632642028,5882.7957,0.000159,2]
[398419360,1765632642950,-490.0,0.00017,2]
[398419361,1765632643008,-297.86732159,0.00017,2]
[398419362,1765632643020,-443.4506406,0.00017,2]
[398419363,1765632643031,-403.92,0.00017,2]
[398419364,1765632643042,-1260.85771008,0.00017,2]
[398419365,1765632643121,-404302.25350718,0.00017,2]
[398419366,1765632643132,-534.187,0.00017,2]
[398419371,1765632647214,-5788.00872087,0.00017,2]
[398419372,1765632647230,-343.53915486,0.00017,2]
[398419373,1765632647242,-2834.61970991,0.00017,2]
[398419374,1765632654556,235.6966,0.000159,2]
[398419376,1765632697117,1000.0,0.000159,2]
[398419377,1765632706556,2881.5177,0.000159,2]
[398419378,1765632706581,10000.01,0.000159,2]
[398419379,1765632706606,10000.01,0.000159,2]
[398419380,1765632706631,10000.01,0.000159,2]
[398419381,1765632706655,10000.01,0.000159,2]
[398419382,1765632706680,10000.01,0.000159,2]
[398419383,1765632706705,10000.01,0.000159,2]
[398419384,1765632706733,10000.01,0.000159,2]
[398419385,1765632706759,10000.01,0.000159,2]
[398419386,1765632706785,10000.01,0.000159,2]
[398419387,1765632712749,-10000.01,0.000159,2]
[398419388,1765632712986,-10000.01,0.000159,2]
[398419389,1765632713112,-10000.01,0.000159,2]
[398419390,1765632713434,-10000.01,0.000159,2]
[398419391,1765632713551,-10000.01,0.000159,2]
[398419392,1765632713667,-10000.01,0.000159,2]
[398419393,1765632713789,-10000.01,0.000159,2]
[398419394,1765632713941,-10000.01,0.000159,2]
[398419395,1765632715463,-10000.01,0.000159,2]
[398419396,1765632715475,-10000.01,0.000159,2]
[398419397,1765632715824,-10000.01,0.000159,2]
[398419398,1765632715949,-10000.01,0.000159,2]
[398419399,1765632718977,-10000.01,0.000159,2]
[398419400,1765632731011,-661.06,0.0001589,3]
[398419401,1765632731239,-661.06,0.000159,2]
[398419402,1765632731256,-8677.89,0.000159,2]
[398419403,1765632731367,-10000.01,0.000159,2]
[398419404,1765632731406,-10000.01,0.000159,2]
[398419405,1765632731584,-10000.01,0.000159,2]
[398419406,1765632734029,-10000.01,0.000159,2]
[398419407,1765632737923,-446.27815344,0.000155,2]
[398419408,1765632738026,-10000.01,0.000155,2]
[398419409,1765632738039,-601.71184656,0.000155,2]
[398419410,1765632738048,-5524.0,0.000156,3]
[398419411,1765632738058,-3874.29815344,0.000157,5]
[398419412,1765632738068,-1649.70184656,0.000157,5]
[398419413,1765632738078,-8350.30815344,0.000159,2]
[398419414,1765632738094,-10000.01,0.000159,2]
[398419415,1765632738115,-10000.01,0.000159,2]
[398419416,1765632738141,-10000.01,0.000159,2]
[398419417,1765632738161,-10000.01,0.000159,2]
[398419418,1765632739002,-177.77283939,0.000159,2]
[398419419,1765632740080,-10000.01,0.000159,2]
[398419420,1765632743151,-10000.01,0.000159,2]
[398419421,1765632743265,-10000.01,0.000159,2]
[398419422,1765632743376,-10000.01,0.000159,2]
[398419423,1765632743526,-10000.01,0.000159,2]
[398419424,1765632743669,-10000.01,0.000159,2]
[398419425,1765632743777,-10000.01,0.000159,2]
[398419426,1765632743899,-10000.01,0.000159,2]
[398419427,1765632749564,-10000.01,0.000159,2]
[398419428,1765632749588,-10000.01,0.000159,2]
[398419429,1765632749841,193.85401494,0.000175,30]
[398419430,1765632755285,-10000.01,0.000159,2]
[398419431,1765632755401,-10000.01,0.000159,2]
[398419433,1765632908221,-300.0,0.00015719,2]
[398419434,1765632959472,500.0,0.00022,30]
[398419435,1765632980292,-166.68869152,0.00015799,2]
[398419436,1765632980330,-195.0,0.00015799,2]
[398419437,1765632980362,-166.68869151,0.000158,2]
[398419438,1765632980394,-166.68869151,0.000158,2]
[398419439,1765632980428,-334.44291538,0.000158,2]
[398419440,1765632980461,-151.0,0.00015897,2]
[398419441,1765632980494,-1200.0,0.00015898,2]
[398419442,1765632980526,-300.0,0.00015898,2]
[398419443,1765632980558,-1200.0,0.00015899,2]
[398419444,1765632980591,-379.30586442,0.00015899,2]
[398419445,1765632980628,-500.0,0.00015899,2]
[398419446,1765632980803,-500.0,0.00015899,2]
[398419447,1765632980838,-500.0,0.00015899,2]
[398419448,1765632980876,-500.0,0.00015899,2]
[398419449,1765632980913,-500.0,0.00015899,2]
[398419450,1765632980948,-500.0,0.00015899,2]
[398419451,1765632980982,-500.0,0.00015899,2]
[398419452,1765632981020,-500.0,0.00015899,2]
[398419453,1765632981055,-500.0,0.00015899,2]
[398419454,1765632981088,-500.0,0.00015899,2]
[398419455,1765632981123,-500.0,0.00015899,2]
[398419456,1765632981261,-500.0,0.00015899,2]
[398419457,1765632981295,-500.0,0.00015899,2]
[398419458,1765632981329,-500.0,0.00015899,2]
[398419459,1765632981367,-383.03578274,0.00015899,2]
[398419460,1765632981402,-500.0,0.00015899,2]
[398419461,1765632981436,-500.0,0.00015899,2]
[398419462,1765632981470,-500.0,0.00015899,2]
[398419463,1765632981507,-500.0,0.00015899,2]
[398419464,1765632981541,-500.0,0.00015899,2]
[398419465,1765632981576,-500.0,0.00015899,2]
[398419466,1765632982625,-248.67720201,0.00015899,2]
[398419467,1765632982650,-251.32279799,0.00015899,2]
[398419468,1765632983186,-248.67720201,0.00015899,2]
[398419469,1765632983221,-500.0,0.00015899,2]
[398419470,1765632983254,-500.0,0.00015899,2]
[398419471,1765632983285,-253.35763268,0.00015899,2]
[398419472,1765632992538,-7118.4923,0.000159,2]
[398419473,1765632996433,-179.761388,0.00015719,2]
[398419474,1765632996520,-9640.487224,0.000159,2]
[398419475,1765632996925,-10000.01,0.000159,2]
[398419476,1765632998517,-10000.01,0.000159,2]
[398419477,1765633001400,-10000.01,0.000159,2]
[398419478,1765633004445,-10000.01,0.000159,2]
[398419479,1765633007592,-10000.01,0.000159,2]
[398419480,1765633007836,-10000.01,0.000159,2]
[398419481,1765633008003,-10000.01,0.000159,2]
[398419482,1765633008451,-10000.01,0.000159,2]
[398419483,1765633008510,-10000.01,0.000159,2]
[398419484,1765633008524,-10000.01,0.000159,2]
[398419485,1765633008552,-10000.01,0.000159,2]
[398419486,1765633016610,-500.0,0.00015797,2]
[398419487,1765633016660,-9000.01,0.000159,2]
[398419488,1765633016736,-10000.01,0.000159,2]
[398419489,1765633025864,-300.0,0.00015899,2]
[398419490,1765633025900,-9400.01,0.000159,2]
[398419491,1765633026193,-10000.01,0.000159,2]
[398419492,1765633026346,-10000.01,0.000159,2]
[398419493,1765633026499,-10000.01,0.000159,2]
[398419494,1765633026617,-10000.01,0.000159,2]
[398419495,1765633030367,-578.20924308,0.000159,2]
[398419496,1765633031220,-8843.59151384,0.000159,2]
[398419497,1765633031242,-10000.01,0.000159,2]
[398419498,1765633031794,-10000.01,0.000159,2]
[398419499,1765633031910,-10000.01,0.000159,2]
[398419500,1765633032027,-10000.01,0.000159,2]
[398419501,1765633032086,-270.70861805,0.000159,2]
[398419502,1765633032190,-10000.01,0.000159,2]
[398419503,1765633032298,-10000.01,0.000159,2]
[398419504,1765633043897,-285.34170836,0.00015899,2]
[398419505,1765633043927,-226.21266891,0.00015899,2]
[398419506,1765633043987,-8976.90124546,0.000159,2]
[398419507,1765633044016,-10000.01,0.000159,2]
[398419508,1765633044139,-10000.01,0.000159,2]
[398419510,1765633110974,-4401.685003,0.00015778,2]
[398419511,1765633110997,-1196.639994,0.00015778,2]
[398419512,1765633111184,-195.0,0.00015789,2]
[398419513,1765633111212,-1200.0,0.00015799,2]
[398419514,1765633111270,-7210.01,0.000158,2]
[398419515,1765633111313,-2790.0,0.000158,2]
[398419516,1765633111343,-200.0,0.00015858,2]
[398419517,1765633111376,-207.4,0.00015858,2]
[398419518,1765633111405,-215.0738,0.00015858,2]
[398419519,1765633111433,-223.0315306,0.00015858,2]
[398419520,1765633111463,-231.28369723,0.00015858,2]
[398419521,1765633111492,-239.84119403,0.00015858,2]
[398419522,1765633111523,-248.71531821,0.00015858,2]
[398419523,1765633111552,-312.21880936,0.00015858,2]
[398419524,1765633111767,-664.88130114,0.000159,2]
[398419525,1765633111806,-10000.01,0.000159,2]
[398419526,1765633111841,-10000.01,0.000159,2]
[398419527,1765633111868,-5335.68910468,0.000159,2]
[398419528,1765633111884,-1000.0,0.000159,2]
[398419529,1765633111898,-1087.2757,0.000159,2]
[398419530,1765633111908,-2068.78021745,0.000159,2]
[398419531,1765633111921,-508.26497787,0.000159,2]
[398419532,1765633112487,-240.174312,0.000159,2]
[398419533,1765633113888,-1432.80596803,0.000159,2]
[398419534,1765633113916,-2068.78021741,0.00015908,2]
[398419535,1765633114278,-928.05741171,0.00016015,2]
[398419536,1765633114337,-1140.7228057,0.00016015,2]
[398419537,1765633114380,-250.0,0.00016041,2]
[398419538,1765633114413,-2068.78021741,0.00016123,2]
[398419539,1765633114442,-2068.78021741,0.0001623,2]
[398419540,1765633114589,-1224.88913036,0.00016338,2]
[398419541,1765633117135,-2746.93137123,0.00016338,2]
[398419542,1765633117183,-4506.14725754,0.00016338,2]
[398419543,1765633117227,-2068.78021741,0.00016338,2]
[398419544,1765633117509,500.0,0.00016337,2]
[398419545,1765633117571,500.0,0.00016337,2]
[398419546,1765633117625,153.67064253,0.00016337,2]
[398419547,1765633128461,390.8583,0.000158,2]
[398419548,1765633180968,-2734.40202338,0.00016338,2]
[398419549,1765633181061,-2986.67701071,0.00016338,2]
[398419550,1765633181160,-10000.01,0.00016338,2]
[398419551,1765633186912,-4768.43647532,0.00016338,2]
[398419552,1765633186935,-463.13704936,0.00016338,2]
[398419553,1765633213549,10000.01,0.00016238,2]
[398419554,1765633293524,1656.915,0.00015913,2]
[398419555,1765633293569,168.068,0.00015913,2]
[398419556,1765633295833,160.86,0.0001579,2]
[398419557,1765633330412,292.63755094,0.0001619,2]
[398419558,1765633357880,9707.37244906,0.00015978,2]
[398419559,1765633357920,4264.57084214,0.00015978,2]
[398419560,1765633405237,304.5266766,0.00015999,2]
[398419561,1765633469922,1000.0,0.00015495,2]
[398419562,1765633500252,1316.38,0.00015504,2]
[398419563,1765633505721,3114.53248126,0.00015526,2]
[398419564,1765633505755,1518.78751874,0.00015526,2]
[398419565,1765633507136,150.0,0.00015288,2]
[398419566,1765633507191,150.0,0.00015854,2]
[398419567,1765633507483,150.0,0.00015288,2]
[398419568,1765633507614,150.0,0.00015288,2]
[398419569,1765633514278,150.0,0.00015288,2]
[398419570,1765633514450,150.0,0.00015288,2]
[398419571,1765633514508,150.0,0.00015712,2]
[398419572,1765633514842,151.17525831,0.00015288,2]
[398419573,1765633514877,150.0,0.00015288,2]
[398419574,1765633514943,150.0,0.00015712,2]
[398419575,1765633519676,150.0,0.00015288,2]
[398419576,1765633527609,150.0,0.00015288,2]
[398419577,1765633528191,150.0,0.00015288,2]
[398419578,1765633530022,150.0,0.00015288,2]
[398419579,1765633530087,150.0,0.00015854,2]
[398419580,1765633534331,999.0,0.00015478,3]
[398419581,1765633538155,473.25,0.00013699,2]
[398419592,1765633585848,-1877.9828629,0.00015978,2]
[398419598,1765633626293,6244.0442742,0.00015,2]
[398419599,1765633626318,10000.01,0.00015,2]
[398419600,1765633626340,10000.01,0.00015,2]
[398419601,1765633626363,10000.01,0.00015,2]
[398419602,1765633626385,10000.01,0.00015,2]
[398419603,1765633626407,10000.01,0.00015,2]
[398419604,1765633626448,154234.6879713,0.00015,2]
[398419623,1765633831927,-150.0,0.00016137,2]
[398419624,1765633831936,-150.0,0.00016137,2]
[398419625,1765633831946,-285.0,0.00016137,2]
[398419626,1765633831955,-195.0,0.00016139,2]
[398419627,1765633831964,-194.66731831,0.0001614,2]
[398419628,1765633831973,-195.0,0.00016144,2]
[398419629,1765633831983,-300.0,0.00016144,2]
[398419630,1765633831992,-250.0,0.0001615,2]
[398419631,1765633832002,-300.19054713,0.00016163,2]
[398419632,1765633832011,-300.0,0.00016182,2]
[398419633,1765633832021,-300.0,0.00016182,2]
[398419634,1765633832030,-1200.0,0.00016182,2]
[398419635,1765633832039,-8281.0512452,0.00016183,2]
[398419636,1765633832049,-4511.24359978,0.00016183,2]
[398419637,1765633832070,-524.45373049,0.00016183,2]
[398419638,1765633832081,-11360.73715159,0.00016183,2]
[398419639,1765633832091,-256.05785709,0.00016183,2]
[398419640,1765633832100,-1200.0,0.00016227,2]
[398419641,1765633832109,-550.0,0.00016227,2]
[398419642,1765633832119,-601.75490043,0.00016227,2]
[398419643,1765633832128,-1095.95,0.00016228,2]
[398419644,1765633832137,-200.0,0.00016228,2]
[398419645,1765633832147,-151.0,0.00016228,2]
[398419646,1765633832156,-151.0,0.00016228,2]
[398419647,1765633832165,-151.0,0.00016228,2]
[398419648,1765633832175,-555.0,0.00016228,2]
[398419650,1765633832184,-591.82939962,0.00016228,2]
[398419651,1765633832194,-500.0,0.00016228,2]
[398419653,1765633832203,-151.0,0.00016228,2]
[398419655,1765633832213,-151.0,0.00016228,2]
[398419657,1765633832223,-1000.0,0.00016228,2]
[398419659,1765633832232,-151.0,0.00016228,2]
[398419661,1765633832242,-1000.0,0.00016228,2]
[398419663,1765633832252,-151.0,0.00016228,2]
[398419664,1765633832261,-1000.0,0.00016228,2]
[398419666,1765633832271,-151.0,0.00016228,2]
[398419668,1765633832280,-154.47071227,0.00016228,2]
[398419670,1765633832289,-1000.0,0.00016228,2]
[398419672,1765633832298,-500.0,0.00016228,2]
[398419674,1765633832312,-151.0,0.00016228,2]
[398419676,1765633832321,-1000.0,0.00016228,2]
[398419678,1765633832330,-500.0,0.00016228,2]
[398419680,1765633832340,-151.0,0.00016228,2]
[398419682,1765633832350,-1115.81912162,0.00016228,2]
[398419684,1765633832359,-500.0,0.00016228,2]
[398419686,1765633832368,-151.0,0.00016228,2]
[398419687,1765633832377,-500.0,0.00016228,2]
[398419689,1765633832389,-151.0,0.00016228,2]
[398419691,1765633832400,-500.0,0.00016228,2]
[398419693,1765633832409,-151.0,0.00016228,2]
[398419695,1765633832418,-500.0,0.00016228,2]
[398419697,1765633832428,-151.0,0.00016228,2]
[398419699,1765633832436,-151.0,0.00016228,2]
[398419701,1765633832445,-500.0,0.00016228,2]
[398419703,1765633832454,-151.0,0.00016228,2]
[398419705,1765633832464,-500.0,0.00016228,2]
[398419706,1765633832473,-151.0,0.00016228,2]
[398419708,1765633832483,-1000.0,0.00016228,2]
[398419726,1765633832813,-500.0,0.00016228,2]
[398419727,1765633832823,-151.0,0.00016228,2]
[398419728,1765633832833,-1000.0,0.00016228,2]
[398419729,1765633832842,-151.0,0.00016228,2]
[398419730,1765633832852,-500.0,0.00016228,2]
[398419731,1765633832861,-1000.0,0.00016228,2]
[398419732,1765633832870,-151.0,0.00016228,2]
[398419733,1765633832880,-636.50815894,0.00016228,2]
[398419734,1765633832890,-1000.0,0.00016228,2]
[398419735,1765633832900,-151.0,0.00016228,2]
[398419736,1765633832909,-1000.0,0.00016228,2]
[398419737,1765633832919,-1000.0,0.00016228,2]
[398419738,1765633832929,-1000.0,0.00016228,2]
[398419739,1765633832939,-574.12855637,0.00016228,2]
[398419740,1765633832948,-1000.0,0.00016228,2]
[398419741,1765633832958,-1000.0,0.00016228,2]
[398419742,1765633832968,-6857.92375235,0.00016228,2]
[398419743,1765633832977,-1000.0,0.00016228,2]
[398419744,1765633832987,-1000.0,0.00016228,2]
[398419745,1765633832996,-200.0,0.00016228,2]
[398419746,1765633833005,-1000.0,0.00016228,2]
[398419747,1765633833015,-1000.0,0.00016228,2]
[398419748,1765633833025,-1000.0,0.00016228,2]
[398419749,1765633833034,-354.72935495,0.00016228,2]
[398419750,1765633833044,-500.0,0.00016228,2]
[398419751,1765633833055,-500.0,0.00016228,2]
[398419752,1765633833065,-500.0,0.00016228,2]
[398419753,1765633833075,-500.0,0.00016228,2]
[398419754,1765633833084,-500.0,0.00016228,2]
[398419755,1765633833094,-500.0,0.00016228,2]
[398419756,1765633833103,-500.0,0.00016228,2]
[398419757,1765633833114,-500.0,0.00016228,2]
[398419758,1765633833124,-500.0,0.00016228,2]
[398419759,1765633833134,-500.0,0.00016228,2]
[398419760,1765633833143,-500.0,0.00016228,2]
[398419761,1765633833153,-500.0,0.00016228,2]
[398419762,1765633833162,-500.0,0.00016228,2]
[398419763,1765633833172,-500.0,0.00016228,2]
[398419764,1765633833182,-500.0,0.00016228,2]
[398419765,1765633833191,-250.0,0.00016228,2]
[398419766,1765633833201,-500.0,0.00016228,2]
[398419767,1765633833211,-500.0,0.00016228,2]
[398419768,1765633833224,-250.0,0.00016228,2]
[398419769,1765633833233,-530.72270864,0.00016228,2]
[398419770,1765633833243,-500.0,0.00016228,2]
[398419771,1765633833252,-250.0,0.00016228,2]
[398419772,1765633833262,-500.0,0.00016228,2]
[398419773,1765633833271,-250.0,0.00016228,2]
[398419774,1765633833280,-473.99709559,0.00016228,2]
[398419775,1765633833290,-250.0,0.00016228,2]
[398419776,1765633833300,-250.0,0.00016228,2]
[398419777,1765633833316,-151.42837888,0.00016228,2]
[398419778,1765633833326,-151.0,0.00016228,2]
[398419779,1765633833335,-250.0,0.00016228,2]
[398419780,1765633833344,-151.0,0.00016228,2]
[398419781,1765633833356,-256.53152749,0.00016228,2]
[398419782,1765633833366,-151.0,0.00016228,2]
[398419783,1765633833377,-151.0,0.00016228,2]
[398419784,1765633833389,-250.0,0.00016228,2]
[398419785,1765633833399,-151.0,0.00016228,2]
[398419786,1765633833409,-250.0,0.00016228,2]
[398419787,1765633833418,-151.0,0.00016228,2]
[398419788,1765633833428,-250.0,0.00016228,2]
[398419789,1765633833437,-151.0,0.00016228,2]
[398419790,1765633833446,-200.0,0.00016228,2]
[398419791,1765633833457,-250.0,0.00016228,2]
[398419792,1765633833466,-151.0,0.00016228,2]
[398419793,1765633833476,-250.0,0.00016228,2]
[398419794,1765633833485,-151.0,0.00016228,2]
[398419795,1765633833494,-151.0,0.00016228,2]
[398419796,1765633833504,-250.0,0.00016228,2]
[398419797,1765633833514,-151.0,0.00016228,2]
[398419798,1765633833523,-300.0,0.00016228,2]
[398419799,1765633833533,-578.20924308,0.00016237,2]
[398419800,1765633833542,-151.6,0.00016237,2]
[398419801,1765633833552,-150.91,0.00016237,2]
[398419802,1765633833562,-150.07,0.00016237,2]
[398419803,1765633833572,-150.55,0.00016237,2]
[398419804,1765633833583,-150.13,0.00016237,2]
[398419805,1765633833593,-152.58,0.00016237,2]
[398419806,1765633833604,-165.94636177,0.00016237,2]
[398419807,1765633833614,-500.0,0.00016237,2]
[398419808,1765633833624,-500.0,0.00016237,2]
[398419809,1765633833634,-500.0,0.00016237,2]
[398419810,1765633833645,-522.35435032,0.00016237,2]
[398419811,1765633833655,-500.0,0.00016237,2]
[398419812,1765633833665,-500.0,0.00016237,2]
[398419813,1765633833675,-500.0,0.00016237,2]
[398419814,1765633833685,-500.0,0.00016237,2]
[398419815,1765633833695,-496.58243571,0.00016237,2]
[398419816,1765633833705,-419.03440298,0.00016237,2]
[398419817,1765633833715,-417.96507252,0.00016237,2]